bitfinex-derivatives/quotes_ETHF0:USTF0_20250308
["timestamp","ask_amount","ask_price","bid_price","bid_amount"]
[1741410766844,2.98353,2145.1,2144.8,2.26130983]
[1741410767346,0.93258,2145.0,2144.8,1.32867983]
[1741410767743,2.051,2145.1,2144.8,2.26132983]
[1741410768050,2.98353,2145.1,2144.8,2.26132983]
[1741410768438,0.93258,2145.0,2144.8,1.32867983]
[1741410769949,0.93258,2145.0,2144.8,2.26132983]
[1741410770351,0.93258,2145.0,2144.8,1.32867983]
[1741410771155,0.93258,2145.0,2144.8,2.26132983]
[1741410771654,0.93258,2145.0,2144.8,1.32867983]
[1741410772056,2.051,2145.1,2144.8,1.32867983]
[1741410772256,2.051,2145.1,2144.8,2.26131983]
[1741410772449,2.98356,2145.1,2144.8,2.26131983]
[1741410773258,0.93257,2145.0,2144.8,2.26131983]
[1741410774853,0.93257,2145.0,2144.8,1.32867983]
[1741410775253,2.051,2145.1,2144.8,1.32867983]
[1741410775254,0.6464,2145.2,2144.8,1.32867983]
[1741410775456,1.57889,2145.2,2144.9,0.93257]
[1741410775657,0.6464,2145.2,2144.9,0.13]
[1741410775862,1.57889,2145.2,2144.9,0.7591]
[1741410776060,1.57889,2145.2,2145.0,0.93256]
[1741410776361,0.93252,2145.1,2145.0,0.04]
[1741410782165,0.6464,2145.2,2145.0,0.97254]
[1741410782455,6.5493,2145.3,2145.0,0.04]
[1741410782659,1.56242,2145.1,2145.0,0.04]
[1741410784166,0.93261,2144.9,2144.8,0.00697983]
[1741410784466,0.93261,2144.9,2144.8,0.14697983]
[1741410784858,2.17831,2144.9,2144.8,0.14697983]
[1741410786560,0.6113,2144.9,2144.8,0.14697983]
[1741410786765,1.56244,2145.1,2144.8,1.07961983]
[1741410786961,0.93259,2145.0,2144.8,0.14697983]
[1741410787166,0.93261,2144.9,2144.8,0.14697983]
[1741410787966,0.6299,2145.1,2144.8,0.14697983]
[1741410788175,1.56245,2145.1,2144.8,1.07961983]
[1741410788475,0.93257,2145.0,2144.8,0.14697983]
[1741410788864,0.6299,2145.1,2144.8,0.14697983]
[1741410789071,0.93261,2144.9,2144.8,0.14697983]
[1741410789377,0.93258,2145.0,2144.8,0.14697983]
[1741410790274,0.6299,2145.1,2144.8,0.14697983]
[1741410790479,0.93261,2144.9,2144.8,0.14697983]
[1741410792476,0.93261,2144.9,2144.8,0.00697983]
[1741410793278,2.98261,2144.9,2144.8,0.00697983]
[1741410793674,0.93287,2144.3,2144.2,0.6338]
[1741410793875,2.33171,2144.8,2144.2,0.6338]
[1741410793876,0.93284,2144.4,2144.2,3.62671]
[1741410794381,0.93281,2144.5,2144.3,0.93286]
[1741410794584,3.2078,2144.6,2144.3,1.03]
[1741410794771,0.93278,2144.5,2144.3,1.96285]
[1741410794971,3.21477983,2144.6,2144.3,1.03]
[1741410795175,0.93281,2144.5,2144.3,1.03]
[1741410796285,3.21477983,2144.6,2144.3,1.03]
[1741410796487,0.93281,2144.5,2144.3,1.03]
[1741410796785,1.5713,2144.5,2144.3,1.03]
[1741410797482,0.6385,2144.5,2144.3,1.03]
[1741410797785,1.57131,2144.5,2144.3,1.03]
[1741410798382,0.93282,2144.4,2144.3,1.03]
[1741410798688,1.58402,2144.4,2144.3,1.03]
[1741410800087,0.00697983,2144.6,2144.3,1.03]
[1741410800381,0.00697983,2144.6,2144.4,0.6314]
[1741410800583,0.00697983,2144.6,2144.4,1.5961]
[1741410800785,0.93973983,2144.6,2144.4,1.5961]
[1741410801389,0.93278,2144.5,2144.4,1.5961]
[1741410801790,0.93973983,2144.6,2144.4,1.5961]
[1741410803388,0.93278,2144.5,2144.4,1.5961]
[1741410803685,0.93972983,2144.6,2144.4,1.5961]
[1741410804688,0.93971983,2144.6,2144.4,1.5961]
[1741410805281,0.00697983,2144.6,2144.4,1.5961]
[1741410805486,0.93971983,2144.6,2144.4,1.5961]
[1741410806391,0.93973983,2144.6,2144.4,1.5961]
[1741410806587,0.00697983,2144.6,2144.4,1.5961]
[1741410806785,0.00697983,2144.6,2144.5,0.93278]
[1741410806983,0.00697983,2144.6,2144.5,1.21278]
[1741410809285,0.00697983,2144.6,2144.5,0.28]
[1741410809790,0.00697983,2144.6,2144.5,1.21278]
[1741410811397,0.00697983,2144.6,2144.5,0.28]
[1741410811799,0.64697983,2144.6,2144.5,0.28]
[1741410813587,1.57971983,2144.6,2144.5,0.28]
[1741410818500,4.78751983,2144.6,2144.5,0.28]
[1741410823003,0.00697983,2144.6,2144.5,1.21278]
[1741410824008,0.00697983,2144.6,2144.5,0.28]
[1741410824507,0.00697983,2144.6,2144.5,0.8852]
[1741410824898,0.00697983,2144.6,2144.5,1.81798]
[1741410825307,0.00697983,2144.6,2144.5,0.8852]
[1741410825506,0.93971983,2144.6,2144.5,0.8852]
[1741410826713,0.93971983,2144.6,2144.5,0.28]
[1741410826714,1.55291983,2144.6,2144.5,0.28]
[1741410827606,3.60291983,2144.6,2144.5,0.28]
[1741410829110,0.93284,2144.4,2144.2,1.60126983]
[1741410829413,0.93284,2144.4,2144.2,3.47126983]
[1741410829909,1.58884,2144.4,2144.2,2.53837983]
[1741410830308,0.656,2144.4,2144.2,2.53837983]
[1741410830507,1.5842,2144.5,2144.2,3.47126983]
[1741410831209,0.6514,2144.5,2144.2,2.53837983]
[1741410831417,1.58418,2144.5,2144.2,3.47126983]
[1741410831614,0.6514,2144.5,2144.2,2.53837983]
[1741410832015,1.58419,2144.5,2144.2,3.47126983]
[1741410832216,1.58419,2144.5,2144.2,2.53837983]
[1741410832417,0.6514,2144.5,2144.2,2.53837983]
[1741410832715,1.5842,2144.5,2144.2,3.47125983]
[1741410833111,1.5842,2144.5,2144.2,2.53837983]
[1741410833318,1.5842,2144.5,2144.2,3.47125983]
[1741410834518,0.6514,2144.5,2144.3,0.93286]
[1741410834720,0.6514,2144.5,2144.3,1.44]
[1741410834721,1.58418,2144.5,2144.3,1.44]
[1741410836019,0.6477,2144.4,2144.3,1.44]
[1741410836212,1.58052,2144.4,2144.3,1.44]
[1741410836412,0.6477,2144.4,2144.3,1.44]
[1741410837616,1.58421,2144.5,2144.3,1.44]
[1741410837924,0.93279,2144.5,2144.3,1.44]
[1741410838219,1.56699,2144.5,2144.3,1.44]
[1741410838722,0.6342,2144.5,2144.3,1.44]
[1741410838922,0.6342,2144.5,2144.3,2.37286]
[1741410840023,0.62017983,2144.6,2144.4,0.93281]
[1741410840223,0.62017983,2144.6,2144.5,0.6071]
[1741410840419,0.62017983,2144.6,2144.5,1.326]
[1741410840617,0.00697983,2144.6,2144.5,1.326]
[1741410840813,0.93971983,2144.6,2144.5,0.7189]
[1741410841217,0.00697983,2144.6,2144.5,0.7189]
[1741410841417,0.93971983,2144.6,2144.5,0.7189]
[1741410842116,0.00697983,2144.6,2144.5,0.7189]
[1741410842317,0.93971983,2144.6,2144.5,0.7189]
[1741410842519,0.00697983,2144.6,2144.5,0.7189]
[1741410843122,0.00697983,2144.6,2144.5,1.65168]
[1741410844924,3.2078,2144.9,2144.7,0.93268]
[1741410845125,3.2078,2144.9,2144.7,1.20268]
[1741410845324,4.14041,2144.9,2144.8,0.6299]
[1741410845525,4.14041,2144.9,2144.8,0.7399]
[1741410846521,3.2078,2144.9,2144.8,0.7399]
[1741410846722,4.14041,2144.9,2144.8,0.7399]
[1741410847917,3.2078,2144.9,2144.8,0.7399]
[1741410849029,0.00697983,2145.1,2144.8,0.7399]
[1741410849219,0.00697983,2145.1,2145.0,0.93256]
[1741410849420,0.00697983,2145.1,2145.0,0.13]
[1741410849624,0.93949983,2145.1,2145.0,0.13]
[1741410851233,0.00697983,2145.1,2144.7,0.643]
[1741410851529,0.93264,2144.9,2144.7,0.853]
[1741410851724,0.6646,2144.8,2144.7,0.853]
[1741410857333,1.59725,2144.8,2144.7,0.853]
[1741410857838,0.6646,2144.8,2144.7,0.853]
[1741410858738,1.59725,2144.8,2144.7,0.853]
[1741410858927,0.6646,2144.8,2144.7,0.853]
[1741410859929,0.6646,2144.8,2144.7,0.21]
[1741410860129,3.8724,2144.8,2144.3,1.2181]
[1741410860332,0.93282,2144.4,2144.3,3.0981]
[1741410861533,0.93281,2144.5,2144.3,3.0981]
[1741410861738,1.55722,2144.4,2144.3,1.88]
[1741410861929,2.16972,2144.4,2144.3,1.88]
[1741410900855,1.2369,2144.4,2144.3,2.81287]
[1741410901051,0.6244,2144.4,2144.3,2.81287]
[1741410901252,0.9328,2144.5,2144.3,2.81287]
[1741410901451,0.93278,2144.5,2144.4,0.635]
[1741410901651,1.53908,2144.5,2144.4,0.635]
[1741410902557,1.53908,2144.5,2144.4,1.2424]
[1741410903058,0.93287,2144.3,2144.2,0.00697983]
[1741410903251,0.93287,2144.3,2144.2,1.58697983]
[1741410904059,1.29861208,2144.3,2144.2,1.58697983]
[1741410905655,0.93287,2144.3,2144.2,1.58697983]
[1741410905861,0.93284,2144.4,2144.2,2.51985983]
[1741410906154,1.5391,2144.5,2144.3,1.55305]
[1741410906370,0.93282,2144.4,2144.3,2.665]
[1741410906952,0.93282,2144.4,2144.3,0.79]
[1741410908162,0.6063,2144.5,2144.3,0.79]
[1741410908163,1.5391,2144.5,2144.3,0.79]
[1741410908457,0.6063,2144.5,2144.4,1.2347]
[1741410908654,0.6063,2144.5,2144.4,1.2847]
[1741410908856,1.53908,2144.5,2144.4,1.2847]
[1741410909156,1.53908,2144.5,2144.4,0.6735]
[1741410915867,5.2558,2144.7,2144.4,0.6735]
[1741410916068,0.93278,2144.5,2144.4,0.6735]
[1741410917172,5.2558,2144.7,2144.4,0.6735]
[1741410917372,0.93275,2144.6,2144.4,1.6063]
[1741410918266,0.93275,2144.6,2144.4,0.6735]
[1741410919066,0.93275,2144.6,2144.4,2.24751]
[1741410919457,0.93275,2144.6,2144.4,1.3147]
[1741410919862,0.93275,2144.6,2144.4,2.24752]
[1741410920171,0.93275,2144.6,2144.4,1.3147]
[1741410920473,0.93275,2144.6,2144.4,2.24752]
[1741410920876,0.93275,2144.6,2144.4,1.3147]
[1741410921168,0.93278,2144.5,2144.4,0.6735]
[1741410923566,3.2078,2144.7,2144.4,0.6735]
[1741410923776,0.93276,2144.6,2144.4,0.6735]
[1741410924571,3.2078,2144.7,2144.4,1.60629]
[1741410924572,4.14052,2144.7,2144.4,1.60629]
[1741410924773,4.14051,2144.7,2144.4,0.6735]
[1741410924981,4.14051,2144.7,2144.4,2.2598]
[1741410925275,4.14051,2144.7,2144.5,0.93277]
[1741410925570,3.9316,2144.8,2144.6,0.6278]
[1741410925776,0.93269,2144.7,2144.6,0.6678]
[1741410927872,0.93269,2144.7,2144.6,0.04]
[1741410929679,4.14049,2144.7,2144.6,0.04]
[1741410934484,0.93269,2144.7,2144.6,0.04]
[1741410934780,3.9316,2144.8,2144.6,0.04]
[1741410934981,0.93269,2144.7,2144.6,0.04]
[1741410935480,5.2548,2145.0,2144.7,0.93268]
[1741410935677,4.14039,2145.0,2144.8,0.6475]
[1741410935982,4.14039,2145.0,2144.8,0.7575]
[1741410936181,0.93261,2144.9,2144.8,0.7575]
[1741410938481,0.93261,2144.9,2144.8,0.11]
[1741410938677,3.2078,2145.0,2144.5,3.2078]
[1741410938878,0.93274,2144.6,2144.5,5.2878]
[1741410951688,0.93274,2144.6,2144.5,2.08]
[1741410966197,3.2078,2144.7,2144.5,2.08]
[1741410966406,3.2078,2144.7,2144.6,0.638]
[1741410966705,4.14049,2144.7,2144.6,3.0966]
[1741410968098,3.2078,2144.7,2144.6,3.0966]
[1741410968300,3.2078,2144.7,2144.6,4.02934]
[1741410968501,2.97859,2145.0,2144.7,0.93269]
[1741410968703,0.93261,2144.9,2144.7,1.70886]
[1741410969502,0.93261,2144.9,2144.7,0.7762]
[1741410969798,2.046,2145.0,2144.7,0.12]
[1741410970190,0.93262,2144.9,2144.7,0.12]
[1741410970595,0.93262,2144.9,2144.7,1.05269]
[1741410970794,2.6806,2145.0,2144.7,1.05269]
[1741410970996,3.61318,2145.0,2144.8,1.56504]
[1741410971202,3.61316,2145.0,2144.9,0.62]
[1741410971402,3.61316,2145.0,2144.9,1.2854]
[1741410972107,3.61316,2145.0,2144.9,0.6654]
[1741410972305,0.93274,2144.6,2144.4,3.2078]
[1741410972501,0.93277,2144.6,2144.4,4.1432]
[1741410972709,0.6408,2144.5,2144.4,4.1432]
[1741410972900,0.93277,2144.6,2144.4,4.1432]
[1741410973108,0.93277,2144.6,2144.4,4.7756]
[1741410973408,0.93278,2144.5,2144.4,4.1432]
[1741410973601,1.58538,2144.5,2144.4,4.1432]
[1741410973799,1.58538,2144.5,2144.4,0.9354]
[1741410976899,0.6526,2144.5,2144.4,0.9354]
[1741410977107,0.93278,2144.5,2144.4,0.9354]
[1741410978107,1.57218,2144.5,2144.4,0.9354]
[1741410985004,1.57218,2144.5,2144.4,0.27]
[1741410992513,0.93287,2144.3,2144.2,0.62007983]
[1741410992713,0.93287,2144.3,2144.2,2.01007983]
[1741410992916,0.93287,2144.3,2144.2,1.39697983]
[1741410995725,0.933,2144.0,2143.9,0.6059]
[1741410995926,0.933,2144.0,2143.9,2.4659]
[1741410997118,1.542,2144.0,2143.9,2.4659]
[1741410997319,0.609,2144.0,2143.9,2.4659]
[1741410997518,1.542,2144.0,2143.9,2.4659]
[1741410999526,0.609,2144.0,2143.9,2.4659]
[1741410999722,1.542,2144.0,2143.9,2.4659]
[1741411000026,0.609,2144.0,2143.9,2.4659]
[1741411000226,1.542,2144.0,2143.9,2.4659]
[1741411000824,0.609,2144.0,2143.9,2.4659]
[1741411001720,1.542,2144.0,2143.9,2.4659]
[1741411001922,0.609,2144.0,2143.9,2.4659]
[1741411002322,1.542,2144.0,2143.9,2.4659]
[1741411002520,0.609,2144.0,2143.9,2.4659]
[1741411002919,2.045,2144.3,2143.9,5.6737]
[1741411003120,2.97788,2144.3,2144.0,0.6127]
[1741411003320,2.97788,2144.3,2144.0,1.6227]
[1741411003617,0.93296,2144.1,2144.0,1.01]
[1741411003817,2.20185,2144.2,2144.0,1.01]
[1741411004025,0.93296,2144.1,2144.0,1.01]
[1741411004228,2.20184,2144.2,2144.0,1.01]
[1741411004526,1.2689,2144.2,2144.0,1.01]
[1741411004823,2.20184,2144.2,2144.0,1.01]
[1741411005025,0.93296,2144.1,2144.0,1.01]
[1741411021833,0.93309,2143.8,2143.7,0.65779643]
[1741411022034,0.93309,2143.8,2143.7,3.14779643]
[1741411023732,0.93309,2143.8,2143.7,2.49699643]
[1741411024532,1.30664156,2143.8,2143.7,2.49699643]
[1741411024753,0.93309,2143.8,2143.7,2.49699643]
[1741411027641,7.1858,2143.9,2143.7,2.49699643]
[1741411027842,4.26826,2143.9,2143.7,3.43010643]
[1741411028043,4.26826,2143.9,2143.8,1.2173]
[1741411028435,2.22326,2143.9,2143.8,1.2173]
[1741411028938,1.2902,2143.9,2143.7,0.00699643]
[1741411029143,1.56929,2143.8,2143.7,0.61699643]
[1741411030344,0.6362,2143.8,2143.7,0.61699643]
[1741411030641,2.22327,2143.9,2143.7,0.61699643]
[1741411030841,0.93309,2143.8,2143.7,0.61699643]
[1741411031542,0.93309,2143.8,2143.7,1.91689643]
[1741411033345,0.93309,2143.8,2143.7,0.61699643]
[1741411039148,0.93309,2143.8,2143.7,0.19984399]
[1741411039348,0.93326,2143.4,2143.3,0.6456]
[1741411039540,0.93326,2143.4,2143.3,2.5556]
[1741411040349,0.93326,2143.4,2143.3,1.91]
[1741411044641,1.2424,2143.5,2143.3,1.91]
[1741411044846,2.044,2143.6,2143.5,0.93322]
[1741411045044,5.2518,2143.9,2143.5,0.24]
[1741411045247,3.2078,2143.9,2143.7,0.93313]
[1741411045549,4.14084,2143.9,2143.8,0.6508]
[1741411045847,4.14084,2143.9,2143.8,1.3117]
[1741411046047,3.2078,2143.9,2143.8,1.3117]
[1741411046348,0.93304,2143.9,2143.8,1.3117]
[1741411046550,0.00699643,2144.0,2143.9,0.93304]
[1741411046745,0.00699643,2144.0,2143.9,1.05304]
[1741411047048,0.00699643,2144.0,2143.9,0.7321]
[1741411048845,0.00699643,2144.0,2143.9,1.66514]
[1741411049046,0.00699643,2144.0,2143.9,0.7321]
[1741411049638,3.2078,2144.2,2144.1,0.93296]
[1741411049839,3.2078,2144.2,2144.1,0.96296]
[1741411050341,3.2078,2144.2,2144.1,0.03]
[1741411051258,4.74461,2144.2,2144.1,0.03]
[1741411052253,3.2078,2144.2,2144.1,0.03]
[1741411052553,3.2078,2144.2,2144.1,0.96296]
[1741411052851,3.2078,2144.2,2144.1,0.03]
[1741411053255,4.14071,2144.2,2144.1,0.03]
[1741411053553,3.2078,2144.2,2144.1,0.03]
[1741411053750,4.14071,2144.2,2144.1,0.03]
[1741411054551,0.93983643,2144.4,2144.1,0.03]
[1741411054861,0.00699643,2144.4,2144.2,0.93289]
[1741411055054,0.00699643,2144.4,2144.3,2.16857]
[1741411055256,0.00699643,2144.4,2144.3,2.24857]
[1741411055555,0.00699643,2144.4,2144.3,1.3157]
[1741411056052,0.93981643,2144.4,2144.3,1.3157]
[1741411056241,0.00699643,2144.4,2144.3,1.3157]
[1741411056558,0.00699643,2144.4,2144.3,2.24857]
[1741411057847,2.659,2144.8,2144.5,0.93274]
[1741411057848,0.615,2144.8,2144.5,0.93274]
[1741411058047,0.615,2144.8,2144.5,0.11]
[1741411058248,0.93265,2144.8,2144.6,0.93271]
[1741411058448,6.18444,2144.9,2144.7,0.6042]
[1741411058657,4.14044,2144.9,2144.7,2.19058]
[1741411058859,4.14044,2144.9,2144.7,1.2579]
[1741411059155,0.93265,2144.8,2144.7,1.2579]
[1741411064659,5.25779643,2145.0,2144.7,1.2579]
[1741411064964,4.14737643,2145.0,2144.8,0.93264]
[1741411065160,4.14737643,2145.0,2144.8,1.02264]
[1741411065965,4.14736643,2145.0,2144.8,1.02264]
[1741411066461,0.00699643,2145.0,2144.9,0.93261]
[1741411066764,0.00699643,2145.0,2144.9,1.01261]
[1741411067157,0.00699643,2145.0,2144.9,0.08]
[1741411067356,0.00699643,2145.0,2144.9,1.01261]
[1741411068559,3.2078,2145.3,2144.9,4.08]
[1741411068765,0.93235,2145.5,2145.1,3.2078]
[1741411068961,3.2078,2145.6,2145.1,0.33]
[1741411069264,0.6614,2145.4,2145.1,0.33]
[1741411069458,0.6614,2145.4,2145.2,0.652]
[1741411069661,1.59381,2145.4,2145.2,0.752]
[1741411070462,0.6614,2145.4,2145.2,0.752]
[1741411070659,1.59382,2145.4,2145.2,0.752]
[1741411071057,0.6614,2145.4,2145.2,0.752]
[1741411071252,1.5938,2145.4,2145.2,0.752]
[1741411071664,0.6614,2145.4,2145.3,0.93243]
[1741411071966,1.26439643,2145.5,2145.3,0.97243]
[1741411072267,1.26439643,2145.5,2145.3,1.57733]
[1741411072670,0.64019643,2145.5,2145.3,1.57733]
[1741411073166,0.00699643,2145.5,2145.3,1.57733]
[1741411073861,0.00699643,2145.5,2145.3,0.6449]
[1741411074865,0.00699643,2145.5,2145.4,0.93239]
[1741411075067,0.00699643,2145.5,2145.4,0.97239]
[1741411076067,0.93934643,2145.5,2145.4,0.04]
[1741411076370,1.57084643,2145.5,2145.4,0.04]
[1741411079068,0.63849643,2145.5,2145.4,0.04]
[1741411079674,0.00699643,2145.5,2145.4,0.04]
[1741411080071,0.93934643,2145.5,2145.4,0.04]
[1741411085172,0.00699643,2145.5,2145.1,0.00699643]
[1741411085370,0.93246,2145.3,2145.1,0.15699643]
[1741411085570,0.6431,2145.2,2145.1,0.15699643]
[1741411086169,0.6431,2145.2,2145.1,1.08951643]
[1741411086572,2.23022,2145.4,2145.1,1.08951643]
[1741411086869,2.85942,2145.4,2145.1,0.15699643]
[1741411087273,1.927,2145.4,2145.1,1.08948643]
[1741411087476,1.927,2145.4,2145.1,0.15699643]
[1741411087777,0.93246,2145.3,2145.1,0.15699643]
[1741411087974,0.93246,2145.3,2145.1,1.08951643]
[1741411088177,2.85942,2145.4,2145.1,1.08951643]
[1741411088371,2.85942,2145.4,2145.2,0.93247]
[1741411088668,2.85942,2145.4,2145.2,0.08]
[1741411088870,0.00699643,2145.5,2145.2,0.08]
[1741411089070,0.00699643,2145.5,2145.3,1.54021]
[1741411089266,0.00699643,2145.5,2145.4,0.93239]
[1741411089470,0.00699643,2145.5,2145.4,1.72869]
[1741411090267,0.00699643,2145.5,2145.4,0.7963]
[1741411090471,0.93934643,2145.5,2145.4,0.13]
[1741411091269,0.00699643,2145.5,2145.4,0.13]
[1741411091468,0.00699643,2145.5,2145.4,1.06239]
[1741411092985,0.00699643,2145.5,2145.4,0.13]
[1741411093370,0.93934643,2145.5,2145.4,0.13]
[1741411093578,0.00699643,2145.5,2145.4,0.13]
[1741411093778,0.93934643,2145.5,2145.4,0.13]
[1741411096979,0.00699643,2145.5,2145.1,0.63739643]
[1741411097279,0.93246,2145.3,2145.1,0.87739643]
[1741411097685,2.20162,2145.4,2145.1,1.80989643]
[1741411097877,1.2692,2145.4,2145.1,0.87739643]
[1741411098074,1.2692,2145.4,2145.2,0.93246]
[1741411098282,1.2692,2145.4,2145.2,1.08246]
[1741411098580,0.00699643,2145.5,2145.4,0.93239]
[1741411098779,0.00699643,2145.5,2145.4,1.04239]
[1741411099175,0.00699643,2145.5,2145.4,1.70699]
[1741411105988,0.6042,2145.8,2145.6,0.93228]
[1741411106187,0.6042,2145.8,2145.7,0.6316]
[1741411106390,0.6042,2145.8,2145.7,0.6416]
[1741411107180,3.2078,2145.9,2145.7,0.6416]
[1741411107380,2.89694643,2146.0,2145.7,1.57384]
[1741411107781,1.96479643,2146.0,2145.7,0.6416]
[1741411107988,0.93222,2145.8,2145.5,0.93233]
[1741411108187,0.93226,2145.8,2145.5,1.08233]
[1741411108482,0.6235,2145.7,2145.5,0.15]
[1741411108890,0.6235,2145.7,2145.5,1.08234]
[1741411109088,0.6235,2145.7,2145.5,0.15]
[1741411109287,2.2537,2145.6,2145.5,0.15]
[1741411109791,1.3214,2145.6,2145.5,0.15]
[1741411110290,2.2537,2145.6,2145.5,0.15]
[1741411113805,0.93239,2145.4,2145.3,2.041]
[1741411113999,0.93239,2145.4,2145.3,2.471]
[1741411114196,4.5292,2145.6,2145.3,0.43]
[1741411114398,0.93237,2145.5,2145.3,0.43]
[1741411115898,0.6161,2145.4,2145.3,0.43]
[1741411116403,1.54849,2145.4,2145.3,0.43]
[1741411117706,0.6161,2145.4,2145.3,0.43]
[1741411118608,0.6161,2145.4,2145.3,1.36243]
[1741411119103,0.6161,2145.4,2145.3,0.43]
[1741411120309,4.5292,2145.6,2145.3,0.43]
[1741411120507,4.5292,2145.6,2145.3,1.36243]
[1741411120712,0.6621,2145.5,2145.4,0.93239]
[1741411120911,0.6621,2145.5,2145.4,0.96239]
[1741411121112,5.4615,2145.6,2145.4,0.96239]
[1741411121410,0.6562,2145.6,2145.5,0.93235]
[1741411121611,4.4785,2145.9,2145.7,0.93224]
[1741411121808,5.1354,2145.9,2145.7,1.03224]
[1741411122111,1.9276,2145.9,2145.8,0.6339]
[1741411122810,1.9276,2145.9,2145.8,0.6539]
[1741411123010,1.2655,2145.9,2145.8,1.58612]
[1741411123306,0.00699643,2146.0,2145.9,0.93217]
[1741411123609,0.00699643,2146.0,2145.9,1.62047]
[1741411124609,0.00699643,2146.0,2145.9,0.6883]
[1741411124814,0.00699643,2146.0,2145.9,1.62047]
[1741411125202,0.00699643,2146.0,2145.9,0.04]
[1741411125805,0.93912643,2146.0,2145.9,0.04]
[1741411126000,0.00699643,2146.0,2145.9,0.04]
[1741411127114,0.93912643,2146.0,2145.9,0.04]
[1741411131109,0.00699643,2146.0,2145.9,0.04]
[1741411131305,0.00699643,2146.0,2145.9,0.97217]
[1741411131510,0.00699643,2146.0,2145.9,0.04]
[1741411131912,0.65499643,2146.0,2145.9,0.04]
[1741411132913,0.00699643,2146.0,2145.9,0.97217]
[1741411133911,0.00699643,2146.0,2145.9,0.04]
[1741411134113,0.93912643,2146.0,2145.9,0.04]
[1741411137021,0.00699643,2146.0,2145.9,0.04]
[1741411137320,0.00699643,2146.0,2145.9,0.97217]
[1741411137515,0.00699643,2146.0,2145.9,0.04]
[1741411137716,0.00699643,2146.0,2145.9,0.6787]
[1741411138218,0.93912643,2146.0,2145.9,0.04]
[1741411138721,0.00699643,2146.0,2145.4,3.2078]
[1741411138920,0.93229,2145.7,2145.4,5.17299]
[1741411139420,1.2885,2145.6,2145.4,4.2406]
[1741411139727,1.2885,2145.6,2145.4,3.6078]
[1741411139915,1.55095,2145.5,2145.4,0.4]
[1741411140111,4.75875,2145.5,2145.4,0.4]
[1741411140316,0.93245,2145.3,2145.1,0.00699643]
[1741411140517,0.93241,2145.4,2145.1,0.48699643]
[1741411140712,0.93243,2145.3,2145.1,0.48699643]
[1741411141113,0.93248,2145.2,2145.1,0.48699643]
[1741411141311,0.93245,2145.3,2145.1,0.48699643]
[1741411142313,3.8264,2145.5,2145.1,0.48699643]
[1741411142314,0.93248,2145.2,2145.1,0.48699643]
[1741411142515,0.6567,2145.2,2145.1,0.48699643]
[1741411142922,1.3225,2145.2,2145.1,0.48699643]
[1741411143316,2.25498,2145.2,2145.1,0.48699643]
[1741411145038,1.69832101,2145.2,2144.7,3.2078]
[1741411145325,0.93258,2145.0,2144.8,0.93264]
[1741411145523,0.93258,2145.0,2144.8,0.69]
[1741411145923,0.664,2145.1,2144.8,1.62264]
[1741411146224,0.93257,2145.0,2144.8,1.62264]
[1741411146424,1.59655,2145.1,2144.9,0.6302]
[1741411146620,0.93256,2145.0,2144.9,1.1102]
[1741411149428,0.664,2145.1,2144.9,1.1102]
[1741411149629,0.93256,2145.0,2144.9,1.1102]
[1741411150726,0.664,2145.1,2144.9,1.1102]
[1741411151030,0.664,2145.1,2144.9,2.04278]
[1741411151226,0.664,2145.1,2145.0,0.6201]
[1741411151428,0.664,2145.1,2145.0,0.9001]
[1741411152033,0.664,2145.1,2145.0,1.83266]
[1741411152233,0.664,2145.1,2145.0,0.9001]
[1741411153941,2.983,2145.4,2145.0,0.9001]
[1741411154127,2.983,2145.4,2145.0,4.1079]
[1741411154332,2.983,2145.4,2145.2,0.93246]
[1741411154533,2.983,2145.4,2145.2,1.13246]
[1741411154736,2.983,2145.4,2145.3,1.54273]
[1741411154935,1.8899,2145.6,2145.3,0.7203]
[1741411155134,0.93237,2145.5,2145.3,0.7203]
[1741411157339,1.8899,2145.6,2145.3,0.7203]
[1741411157529,2.82222,2145.6,2145.3,1.65272]
[1741411157831,2.82223,2145.6,2145.3,1.65272]
[1741411158036,1.8899,2145.6,2145.3,1.65272]
[1741411158837,0.93223,2145.8,2145.3,0.7203]
[1741411159073,0.93223,2145.8,2145.5,0.93234]
[1741411159235,2.85139,2145.9,2145.6,0.93229]
[1741411159440,1.9192,2145.9,2145.6,0.7883]
[1741411160036,2.85137,2145.9,2145.6,1.72057]
[1741411162238,2.85137,2145.9,2145.6,0.7883]
[1741411162436,0.93226,2145.7,2145.6,0.14]
[1741411162642,1.9192,2145.9,2145.3,5.2468]
[1741411162643,0.93236,2145.5,2145.3,5.2468]
[1741411162833,1.2363,2145.4,2145.3,4.7678]
[1741411163032,1.8946,2145.4,2145.3,4.7678]
[1741411163344,1.8946,2145.4,2145.3,1.56]
[1741411164332,0.93229,2145.7,2145.3,1.56]
[1741411164534,1.55379,2145.7,2145.4,0.6043]
[1741411164734,0.6148,2145.6,2145.4,0.6943]
[1741411165340,1.5471,2145.6,2145.4,0.6943]
[1741411165743,0.6148,2145.6,2145.4,0.6943]
[1741411165943,1.55715,2145.5,2145.4,0.6943]
[1741411166143,0.6248,2145.5,2145.4,1.62669]
[1741411166942,0.6215,2145.7,2145.5,0.93235]
[1741411167140,3.36174942,2146.0,2145.6,0.93229]
[1741411167141,2.19849,2145.9,2145.6,0.93229]
[1741411167436,2.81559,2145.9,2145.6,0.03]
[1741411167638,2.81559,2145.9,2145.6,0.96227]
[1741411167838,2.81559,2145.9,2145.7,0.6153]